bitfinex-derivatives/quotes_SOLF0:USTF0_20251025
["timestamp","ask_amount","ask_price","bid_price","bid_amount"]
[1761386611967,2.65,192.72,192.69,65.28]
[1761386612167,2.65,192.72,192.64,2.26]
[1761386612373,2.65,192.72,192.65,63.0]
[1761386612765,2.65,192.71,192.65,63.0]
[1761386613072,2.65,192.7,192.65,65.26]
[1761386613573,2.65,192.7,192.66,2.26]
[1761386616772,2.65,192.7,192.65,65.26]
[1761386616976,6.47465497,192.72,192.66,2.26]
[1761386617170,6.47465497,192.71,192.66,2.26]
[1761386617373,6.47465497,192.7,192.66,2.26]
[1761386617666,2.65,192.7,192.66,2.26]
[1761386618582,6.47519228,192.7,192.66,2.26]
[1761386618768,2.65,192.7,192.66,2.26]
[1761386619470,6.49570443,192.7,192.66,2.26]
[1761386619669,2.65,192.7,192.66,2.26]
[1761386620379,6.49660756,192.7,192.66,2.26]
[1761386620578,2.65,192.7,192.66,2.26]
[1761386621266,6.49665175,192.7,192.66,2.26]
[1761386621472,2.65,192.7,192.66,2.26]
[1761386621781,3.84662609,192.72,192.66,2.26]
[1761386622079,6.57662609,192.71,192.66,2.26]
[1761386622280,3.84662609,192.7,192.66,2.26]
[1761386622986,2.73,192.7,192.66,2.26]
[1761386623480,2.73,192.69,192.66,2.26]
[1761386624476,2.73,192.72,192.66,2.26]
[1761386624678,6.57666081,192.71,192.66,2.26]
[1761386624874,6.57666081,192.7,192.66,2.26]
[1761386625075,2.73,192.7,192.66,2.26]
[1761386627280,6.57691315,192.7,192.66,2.26]
[1761386627585,2.73,192.7,192.66,2.26]
[1761386628584,6.57717394,192.7,192.66,2.26]
[1761386628786,2.73,192.7,192.66,2.26]
[1761386629684,6.5773164,192.7,192.66,2.26]
[1761386629894,2.73,192.7,192.66,2.26]
[1761386630786,6.57747267,192.7,192.66,2.26]
[1761386630984,2.73,192.7,192.66,2.26]
[1761386631697,2.73,192.7,192.67,62.98]
[1761386631888,2.73,192.69,192.67,62.98]
[1761386632289,2.73,192.69,192.63,2.26]
[1761386632489,2.73,192.67,192.64,62.98]
[1761386632892,2.73,192.67,192.64,65.24]
[1761386633102,2.73,192.67,192.65,2.26]
[1761386634010,2.73,192.67,192.64,62.98]
[1761386634011,2.73,192.67,192.64,65.24]
[1761386636807,2.73,192.67,192.65,2.26]
[1761386637608,2.73,192.67,192.66,62.98]
[1761386638502,2.73,192.67,192.61,2.26]
[1761386638708,3.8449853,192.7,192.61,2.26]
[1761386638709,2.61,192.65,192.61,2.26]
[1761386639804,2.61,192.64,192.61,2.26]
[1761386640202,2.61,192.64,192.6,62.98]
[1761386640396,8.19072176,192.67,192.6,65.24]
[1761386640607,2.61,192.65,192.6,65.24]
[1761386640809,2.61,192.64,192.6,65.24]
[1761386641106,2.61,192.63,192.6,65.24]
[1761386643513,2.61,192.63,192.6,62.98]
[1761386644110,2.61,192.63,192.57,2.26]
[1761386644409,2.61,192.63,192.58,65.24]
[1761386644611,2.61,192.63,192.58,2.26]
[1761386644999,2.61,192.63,192.52,2.37169317]
[1761386645000,2.61,192.63,192.55,2.26]
[1761386645203,2.61,192.63,192.52,4.63169317]
[1761386645507,2.61,192.62,192.52,2.26]
[1761386645701,2.61,192.61,192.53,62.98]
[1761386646011,2.61,192.6,192.53,62.98]
[1761386646203,2.61,192.59,192.53,62.98]
[1761386648217,2.61,192.59,192.52,65.24]
[1761386649209,2.61,192.59,192.53,2.26]
[1761386652820,2.61,192.59,192.5,65.24]
[1761386653419,2.61,192.59,192.51,62.98]
[1761386655118,2.61,192.59,192.48,7.98651317]
[1761386655318,2.61,192.59,192.49,62.98]
[1761386655509,2.61,192.59,192.49,65.24]
[1761386657425,2.61,192.59,192.5,2.26]
[1761386659127,7.304,192.54,192.5,2.26]
[1761386661419,2.63,192.53,192.5,2.26]
[1761386663332,4.674,192.54,192.5,2.26]
[1761386664536,7.304,192.54,192.5,2.26]
[1761386668134,7.304,192.54,192.51,63.0]
[1761386668340,7.304,192.54,192.52,2.26]
[1761386669240,4.674,192.54,192.52,2.26]
[1761386673446,7.304,192.54,192.52,2.26]
[1761386677937,2.63,192.54,192.51,63.0]
[1761386678150,7.3342,192.53,192.51,63.0]
[1761386678344,7.3342,192.53,192.51,65.26]
[1761386678850,7.3342,192.53,192.51,2.26]
[1761386679046,4.6745,192.52,192.49,2.26]
[1761386679257,2.66,192.51,192.5,28.52]
[1761386679549,2.66,192.51,192.48,68.23482]
[1761386679745,7.3349,192.5,192.48,5.61482]
[1761386680846,7.3349,192.5,192.48,7.87482]
[1761386681243,2.66,192.49,192.48,5.61482]
[1761386683154,4.6749,192.5,192.49,2.26]
[1761386684252,4.6749,192.5,192.41,7.04839317]
[1761386684253,4.76979857,192.58,192.36,4.63169317]
[1761386684553,2.66,192.38,192.23,2.26]
[1761386684755,2.66,192.36,192.25,2.26]
[1761386684956,2.66,192.35,192.26,5.48]
[1761386685152,2.66,192.35,192.15,2.26]
[1761386685354,2.66,192.31,192.17,2.26]
[1761386685650,2.66,192.31,192.16,29.03]
[1761386685651,2.66,192.31,192.16,15.59]
[1761386685855,2.66,192.3,192.18,2.26]
[1761386686054,2.66,192.3,192.2,2.26]
[1761386686253,2.66,192.26,192.13,2.26]
[1761386686454,2.66,192.26,192.18,2.26]
[1761386686751,2.66,192.26,192.19,31.42]
[1761386687052,0.90541296,192.31,192.2,2.26]
[1761386687354,2.66,192.33,192.22,2.26]
[1761386688449,2.66,192.33,192.23,63.7]
[1761386688655,2.66,192.33,192.23,65.96]
[1761386688955,2.66,192.33,192.24,63.68]
[1761386689757,2.66,192.33,192.24,65.94]
[1761386690456,2.66,192.33,192.24,2.26]
[1761386690655,2.66,192.33,192.25,63.7]
[1761386691050,2.66,192.33,192.26,63.68]
[1761386691854,2.66,192.33,192.24,2.26]
[1761386692052,2.66,192.33,192.25,63.68]
[1761386692261,2.66,192.33,192.24,2.26]
[1761386692460,2.66,192.33,192.25,63.68]
[1761386693562,2.66,192.33,192.24,2.26]
[1761386693563,2.66,192.33,192.26,63.68]
[1761386694560,2.66,192.33,192.27,63.68]
[1761386694960,2.66,192.33,192.28,63.68]
[1761386695657,2.66,192.33,192.29,63.68]
[1761386696766,2.66,192.3,192.2,2.26]
[1761386696963,2.66,192.25,192.1,2.26]
[1761386697163,2.66,192.25,192.12,2.26]
[1761386697559,2.37169317,192.28,192.12,2.26]
[1761386698158,2.66,192.27,192.14,17.85]
[1761386698355,2.66,192.27,192.16,2.26]
[1761386699956,2.66,192.27,192.17,2.27]
[1761386701867,2.66,192.27,192.18,63.78]
[1761386702067,2.66,192.27,192.19,2.27]
[1761386702362,2.37169317,192.28,192.21,2.27]
[1761386702563,2.37169317,192.28,192.23,2.27]
[1761386702770,1.52391743,192.28,192.25,2.27]
[1761386702963,1.52391743,192.28,192.26,65.01]
[1761386703661,1.52391743,192.28,192.27,63.78]
[1761386704667,4.22391743,192.28,192.27,63.78]
[1761386704864,4.6797,192.3,192.27,63.78]
[1761386705070,1.52391743,192.28,192.27,63.78]
[1761386705371,1.52391743,192.28,192.23,2.27]
[1761386705570,1.52391743,192.28,192.25,2.27]
[1761386705770,1.52391743,192.28,192.26,63.76]
[1761386707075,1.52391743,192.28,192.26,66.03]
[1761386708775,1.52391743,192.28,192.26,2.27]
[1761386709077,2.85,192.29,192.27,63.72]
[1761386710176,4.6797,192.3,192.27,65.99]
[1761386710476,7.5297,192.3,192.27,65.99]
[1761386711275,2.85,192.29,192.27,2.27]
[1761386711476,2.85,192.29,192.28,63.7]
[1761386711675,4.6801,192.28,192.21,2.27]
[1761386711885,4.6801,192.28,192.23,2.27]
[1761386714789,4.6801,192.28,192.25,2.27]
[1761386714989,4.6801,192.28,192.26,65.95]
[1761386715687,4.6801,192.28,192.26,63.68]
[1761386715984,4.6801,192.28,192.27,2.27]
[1761386718386,4.6801,192.28,192.26,63.68]
[1761386718686,4.6801,192.28,192.26,65.95]
[1761386719287,4.6801,192.28,192.27,63.64]
[1761386720783,4.6801,192.28,192.27,65.91]
[1761386721380,4.6801,192.28,192.27,63.64]
[1761386724602,4.6801,192.28,192.27,63.58]
[1761386725296,8.62712362,192.28,192.27,63.58]
[1761386725895,8.62712362,192.28,192.24,2.27]
[1761386726093,4.6801,192.28,192.26,2.27]
[1761386726401,3.96217523,192.27,192.26,2.27]
[1761386726786,3.96217523,192.27,192.26,65.83]
[1761386729293,8.63518709,192.27,192.26,65.83]
[1761386729492,8.63518709,192.27,192.26,65.81]
[1761386730092,3.96217523,192.27,192.26,65.81]
[1761386730287,3.96217523,192.27,192.26,2.27]
[1761386730498,3.96217523,192.27,192.26,65.79]
[1761386733698,3.96217523,192.27,192.26,2.27]
[1761386733900,3.96217523,192.27,192.26,65.77]
[1761386736596,3.96217523,192.27,192.26,65.73]
[1761386737199,4.681,192.25,192.18,62.0]
[1761386737401,2.85,192.28,192.2,2.27]
[1761386737599,3.84934601,192.27,192.2,2.27]
[1761386737799,3.84934601,192.26,192.21,1.52391743]
[1761386738003,7.27746359,192.3,192.22,2.27]
[1761386738197,2.9,192.28,192.24,2.27]
[1761386738404,6.74958159,192.27,192.24,2.27]
[1761386738602,2.9,192.27,192.24,2.27]
[1761386739000,4.6807,192.26,192.24,2.27]
[1761386739399,4.6807,192.26,192.25,63.5]
[1761386739908,7.5807,192.26,192.25,63.5]
[1761386741801,7.5807,192.26,192.24,2.27]
[1761386742105,7.5807,192.26,192.25,63.48]
[1761386745713,4.6807,192.26,192.25,65.75]
[1761386746606,4.6807,192.26,192.19,1.52391743]
[1761386746913,7.5807,192.26,192.2,63.46]
[1761386747312,4.681,192.25,192.2,63.46]
[1761386748516,4.681,192.25,192.21,1.61]
[1761386752716,4.6813,192.24,192.22,65.03]
[1761386752912,4.6813,192.24,192.23,1.61]
[1761386758808,4.6813,192.24,192.23,64.97]
[1761386759219,4.6813,192.24,192.23,1.61]
[1761386759420,4.6813,192.24,192.23,64.97]
[1761386763926,4.6813,192.24,192.23,64.95]
[1761386766714,4.6813,192.24,192.23,1.61]
[1761386766918,7.5113,192.24,192.23,63.32]
[1761386767520,7.5113,192.24,192.23,63.3]
[1761386768222,4.6813,192.24,192.23,64.91]
[1761386768422,4.6818,192.21,192.1,15.59]
[1761386768623,4.6818,192.21,192.12,15.59]
[1761386768822,4.6818,192.21,192.13,20.2737]
[1761386769030,2.67,192.21,192.04,220.80009372]
[1761386769222,2.67,192.19,192.05,63.3]
[1761386769524,2.67,192.19,192.09,20.2747]
[1761386769721,2.67,192.19,192.1,63.32]
[1761386769923,2.67,192.19,192.1,125.32]
[1761386770226,2.67,192.19,192.11,63.34]
[1761386771027,2.67,192.19,192.12,63.32]
[1761386771028,4.683,192.17,192.12,63.32]
[1761386772228,4.6833,192.15,192.07,4.6852]
[1761386772428,4.6833,192.15,192.08,63.34]
[1761386772727,4.6833,192.15,192.09,63.34]
[1761386772922,2.67,192.16,192.07,20.2752]
[1761386773331,2.67,192.16,192.08,106.52]
[1761386774030,7.3532,192.16,192.08,106.52]
[1761386775127,7.3532,192.16,192.08,62.0]
[1761386775433,7.3532,192.16,192.09,63.38]
[1761386777333,7.3532,192.16,192.1,63.36]
[1761386778423,7.3532,192.16,192.08,62.0]
[1761386778728,7.3532,192.16,192.09,63.36]
[1761386778929,7.3532,192.16,192.08,62.0]
[1761386779129,2.67,192.15,192.09,63.34]
[1761386779332,2.67,192.15,192.08,62.0]
[1761386779532,2.67,192.15,192.05,4.6857]
[1761386779735,2.67,192.15,192.06,63.34]
[1761386781026,2.67,192.13,192.05,4.6857]
[1761386781228,2.38093368,192.2,192.05,4.6857]
[1761386781421,2.67,192.19,192.06,63.34]
[1761386782326,4.6837,192.14,192.06,63.34]
[1761386782535,4.6837,192.14,192.07,62.0]
[1761386782736,4.6837,192.14,192.08,63.38]
[1761386783233,4.6837,192.14,192.09,63.36]
[1761386783727,4.6837,192.14,192.07,62.0]
[1761386783935,4.6837,192.14,192.1,63.38]
[1761386787335,4.6837,192.14,192.11,63.36]
[1761386787535,4.6837,192.14,192.07,62.0]
[1761386787736,4.6837,192.14,192.08,63.34]
[1761386788540,4.6837,192.14,192.07,62.0]
[1761386788840,4.6837,192.14,192.09,63.34]
[1761386789138,4.6837,192.14,192.07,62.0]
[1761386789340,4.6837,192.14,192.08,63.34]
[1761386790138,4.6837,192.14,192.09,63.34]
[1761386793139,4.6837,192.14,192.1,63.32]
[1761386793841,4.6837,192.14,192.07,66.6851]
[1761386794040,4.6837,192.14,192.08,63.32]
[1761386794232,7.3537,192.14,192.09,63.3]
[1761386794835,7.3537,192.14,192.07,66.6851]
[1761386795141,7.3537,192.14,192.08,63.3]
[1761386796342,7.3537,192.14,192.09,63.3]
[1761386796937,7.3539,192.13,192.07,62.0]
[1761386797139,2.67,192.13,192.08,63.28]
[1761386797342,2.67,192.13,192.09,63.28]
[1761386797939,4.6842,192.12,192.09,63.28]
[1761386798339,4.6842,192.12,192.03,4.6861]
[1761386798542,4.6842,192.12,192.04,63.3]
[1761386799942,4.6842,192.12,192.05,63.28]
[1761386800131,2.78,192.17,191.99,15.59]
[1761386800335,3.98304685,192.17,191.99,15.59]
[1761386800534,2.78,192.16,192.0,63.28]
[1761386802044,4.6847,192.1,192.01,4.6865]
[1761386802246,2.78,192.12,192.01,15.59]
[1761386802441,4.6847,192.1,192.02,67.9664]
[1761386802832,4.6847,192.1,192.02,4.6864]
[1761386803038,4.6847,192.1,192.03,63.28]
[1761386803238,4.6847,192.1,192.04,62.0]
[1761386806049,4.6849,192.09,192.02,4.6864]
[1761386806247,4.6849,192.09,192.03,63.26]
[1761386807549,4.6849,192.09,192.02,4.6864]
[1761386808045,4.6849,192.09,192.03,63.24]
[1761386808241,4.6849,192.09,192.04,63.24]
[1761386808745,4.6849,192.09,192.02,4.6864]
[1761386808946,4.6849,192.09,192.03,63.24]
[1761386809245,4.6849,192.09,192.04,62.0]
[1761386809443,2.78,192.12,192.04,62.0]
[1761386809444,2.38093368,192.16,192.04,62.0]
[1761386809643,2.78,192.07,191.94,15.59]
[1761386809843,2.38093368,192.1,191.96,15.59]
[1761386810045,2.78,192.1,191.96,15.59]
[1761386810241,2.78,192.07,191.9,12.78009372]
[1761386810437,2.78,192.1,191.91,65.82093368]
[1761386810753,2.78,192.1,191.95,0.90616741]
[1761386812142,4.685,192.09,192.0,15.59]
[1761386812450,4.685,192.09,192.01,63.56]
[1761386812646,4.685,192.09,192.02,62.0]
[1761386813255,4.6843,192.11,192.02,77.59]
[1761386813844,4.6843,192.11,192.03,63.54]
[1761386814646,118.84817907,192.19,192.04,15.59]
[1761386814847,6.77240992,192.18,192.04,15.59]
[1761386815047,2.78,192.18,192.04,15.59]
[1761386816047,4.6836,192.14,192.06,4.6855]
[1761386816454,4.6831,192.16,192.07,15.59]
[1761386817042,4.6831,192.16,192.08,62.0]
[1761386817254,4.6831,192.16,192.09,61.4]
[1761386820459,4.6831,192.16,192.1,62.0]
[1761386821163,4.6831,192.16,192.11,63.5]
[1761386821656,2.89,192.13,192.1,62.0]
[1761386821856,2.89,192.13,192.11,63.5]
[1761386822060,2.89,192.13,192.12,63.48]
[1761386822961,2.89,192.13,192.12,63.5]
[1761386823960,2.89,192.13,192.12,63.48]
[1761386826769,7.574,192.13,192.12,63.48]
[1761386828467,4.684,192.13,192.12,63.48]
[1761386830369,2.74,192.12,192.04,82.2757]
[1761386830566,4.6844,192.11,192.05,63.46]
[1761386831667,4.6844,192.11,192.04,82.2757]
[1761386831873,4.6844,192.11,192.05,63.44]
[1761386832773,2.74,192.1,192.06,63.42]
[1761386832978,2.74,192.1,192.04,77.59]
[1761386833277,2.74,192.1,192.07,63.44]
[1761386835480,2.74,192.1,192.08,63.42]
[1761386836376,4.6844,192.11,192.08,63.42]
[1761386837279,7.4244,192.11,192.08,63.42]
[1761386841479,2.74,192.08,192.0,15.59]
[1761386841679,2.74,192.08,192.01,63.36]
[1761386841979,2.74,192.08,192.0,15.59]
[1761386842184,2.74,192.08,192.01,63.38]
[1761386842381,4.6856,192.06,192.02,63.4]
[1761386842573,2.74,192.05,191.95,208.14]
[1761386842773,2.74,192.05,191.96,63.4]
[1761386843282,4.6861,192.04,191.97,63.4]
[1761386843887,7.4261,192.04,191.98,63.4]
[1761386844584,7.4261,192.04,191.98,125.4]
[1761386845280,2.74,191.98,191.77,28.71940656]
[1761386845482,2.74,191.98,191.81,1.52593138]
[1761386845483,2.74,191.95,191.81,1.52593138]
[1761386845681,2.74,191.95,191.83,15.59]
[1761386845882,2.74,191.88,191.79,0.90669863]
[1761386846086,9.3734,192.02,191.8,41.04]
[1761386846087,2.74,191.92,191.8,41.04]
[1761386846283,2.74,191.84,191.65,12.78009372]
[1761386846483,2.74,191.9,191.77,1.52593138]
[1761386846674,2.74,191.85,191.73,0.90708858]
[1761386846874,2.74,191.79,191.73,0.90708858]
[1761386847074,2.74,191.79,191.69,15.59]
[1761386847379,2.74,191.69,191.61,0.90765639]
[1761386847582,1.52593138,191.67,191.54,39.17]
[1761386847782,2.74,191.58,191.35,4.7026]
[1761386848086,2.74,191.57,191.41,1.52593138]
[1761386848387,2.74,191.57,191.37,1.52593138]
[1761386848388,1.52593138,191.56,191.38,1.52593138]
[1761386848684,2.74,191.55,191.4,15.59]
[1761386848884,2.74,191.51,191.28,3.7311434]
[1761386849184,2.74,191.45,190.97,73.3016]
[1761386849381,2.74,191.35,191.13,3.7311434]
[1761386849583,2.74,191.34,191.12,3.7311434]
[1761386849783,2.74,191.34,191.27,3.7311434]
[1761386849976,6.32288318,191.49,191.12,8.4396434]
[1761386849977,3.95949824,191.44,191.3,3.7311434]
[1761386850184,3.95949824,191.48,191.25,2.66]
[1761386850378,3.95949824,191.5,191.37,3.7311434]
[1761386850577,208.3,191.54,191.42,3.7311434]
[1761386850782,4.74776773,191.62,191.43,3.7311434]
[1761386851086,208.38,191.72,191.48,6.3911434]
[1761386851288,3.93265548,191.71,191.49,73.6311434]
[1761386851482,4.74776773,191.83,191.56,15.59]
[1761386851787,3.7311434,191.79,191.55,2.66]
[1761386851984,2.74,191.78,191.59,2.66]
[1761386852284,2.74,191.78,191.61,2.66]
[1761386852592,2.74,191.78,191.62,2.66]
[1761386852787,2.74,191.78,191.6,32.46]
[1761386852788,2.74,191.78,191.63,15.59]
[1761386852982,2.74,191.78,191.64,2.66]
[1761386853487,2.74,191.74,191.64,35.68]
[1761386853988,2.74,191.74,191.65,63.58]
[1761386855077,2.74,191.8,191.66,62.0]
[1761386855389,2.74,191.8,191.67,68.9]
[1761386855894,2.74,191.8,191.67,71.56]
[1761386856387,2.74,191.8,191.67,2.66]
[1761386856692,2.74,191.8,191.68,68.86]
[1761386857389,2.74,191.8,191.68,71.52]
[1761386857591,2.74,191.8,191.68,2.66]
[1761386857784,2.74,191.8,191.69,68.8]
[1761386857988,2.74,191.8,191.68,2.66]
[1761386858182,2.72,191.75,191.63,2.75]
[1761386861292,2.72,191.75,191.63,64.75]
[1761386862095,2.72,191.75,191.63,2.75]
[1761386862596,2.72,191.75,191.62,68.7]
[1761386862795,2.72,191.75,191.62,71.45]
[1761386862992,2.72,191.75,191.63,2.75]
[1761386864999,2.72,191.8,191.65,2.75]
[1761386866093,2.72,191.8,191.65,18.34]
[1761386866294,2.72,191.8,191.66,18.34]
[1761386866700,2.72,191.8,191.67,2.75]
[1761386866903,2.72,191.8,191.68,2.75]
[1761386870005,2.72,191.79,191.68,2.75]
[1761386875092,7.4124,191.78,191.68,2.75]
[1761386876201,4.63887082,191.81,191.66,62.0]
[1761386876510,2.72,191.75,191.57,2.75]
[1761386876702,2.72,191.75,191.61,68.1]
[1761386878001,4.6944,191.7,191.61,68.1]
[1761386878201,7.4144,191.7,191.61,68.1]
[1761386880308,2.83,191.69,191.61,68.02]
[1761386881106,2.83,191.69,191.58,64.75]
[1761386881308,2.83,191.69,191.59,67.94]
[1761386881610,2.83,191.69,191.59,70.69]
[1761386881909,2.83,191.69,191.6,2.75]
[1761386882498,4.6944,191.7,191.6,2.75]
[1761386882705,2.83,191.73,191.6,2.75]
[1761386883307,4.6938,191.72,191.6,2.75]
[1761386883514,7.5238,191.72,191.6,2.75]
[1761386885207,3.99801479,191.71,191.6,2.75]
[1761386885615,4.6932,191.75,191.62,2.75]
[1761386885806,3.99960156,191.74,191.62,2.75]
[1761386886007,4.6932,191.75,191.62,18.34]
[1761386886314,3.99961584,191.74,191.63,2.75]
[1761386886507,3.99961584,191.73,191.63,2.75]
[1761386886708,3.99961584,191.72,191.63,2.75]
[1761386886910,4.6932,191.75,191.63,2.75]
[1761386887111,4.00736783,191.74,191.64,2.75]
[1761386887308,4.00736783,191.73,191.64,2.75]
[1761386887509,4.00736783,191.72,191.64,2.75]
[1761386887814,4.6932,191.75,191.64,2.75]
[1761386888015,3.97179978,191.74,191.64,2.75]
[1761386888314,3.97179978,191.73,191.64,2.75]
[1761386888514,4.6932,191.75,191.64,2.75]
[1761386888715,3.92273772,191.74,191.64,2.75]
[1761386888918,3.92273772,191.73,191.64,2.75]
[1761386889207,3.92448686,191.72,191.66,2.74]
[1761386889414,4.6932,191.75,191.68,2.74]
[1761386889616,3.92545376,191.74,191.68,2.74]
[1761386889915,11.36905376,191.73,191.68,2.74]
[1761386890114,11.36905376,191.73,191.63,4.6958]
[1761386890115,6.67545376,191.72,191.62,2.74]
[1761386890315,6.67545376,191.71,191.65,65.96]
[1761386890515,2.75,191.69,191.62,2.74]
[1761386890715,8.62045376,191.68,191.62,2.74]
[1761386890912,3.92545376,191.67,191.62,2.74]
[1761386891113,3.92545376,191.66,191.62,2.74]
[1761386891411,4.74776773,191.71,191.62,2.74]
[1761386891619,3.93725868,191.7,191.62,2.74]
[1761386891917,3.93725868,191.69,191.62,2.74]
[1761386892117,3.93725868,191.68,191.62,2.74]
[1761386892310,3.93725868,191.67,191.62,2.74]
[1761386892506,4.6942,191.71,191.62,2.74]
[1761386892707,3.92137514,191.7,191.62,2.74]
[1761386893011,2.75,191.73,191.62,2.74]
[1761386893012,3.92137514,191.69,191.62,2.74]
[1761386893219,2.75,191.73,191.64,2.74]
[1761386893407,3.92343626,191.72,191.64,2.74]
[1761386893607,3.92343626,191.71,191.64,2.74]
[1761386893811,3.92343626,191.7,191.64,2.74]
[1761386894014,3.92343626,191.69,191.64,2.74]
[1761386894212,3.92343626,191.68,191.64,2.74]
[1761386894410,4.6938,191.72,191.64,2.74]
[1761386894611,3.9309514,191.71,191.64,2.74]
[1761386894916,3.9309514,191.7,191.64,2.74]
[1761386895121,8.67871913,191.69,191.64,2.74]
[1761386895316,3.9309514,191.68,191.64,2.74]
[1761386895520,3.9309514,191.67,191.64,2.74]
[1761386895819,3.9309514,191.66,191.64,2.74]
[1761386896018,3.9309514,191.65,191.64,2.74]
[1761386896419,4.74776773,191.72,191.64,2.74]
[1761386896620,3.84711269,191.71,191.64,4.6955]
[1761386896810,3.84711269,191.7,191.65,2.74]
[1761386897013,3.84711269,191.69,191.65,2.74]
[1761386897214,9.44106773,191.74,191.65,2.74]
[1761386897518,3.84758303,191.73,191.65,2.74]
[1761386897721,3.84758303,191.72,191.66,2.74]
[1761386897916,3.84758303,191.71,191.68,2.74]
[1761386898113,9.44056773,191.77,191.68,2.74]
[1761386898314,15.61076424,191.76,191.68,2.74]
[1761386898514,3.79278416,191.75,191.68,2.74]
[1761386898819,3.79278416,191.74,191.68,2.74]
[1761386899015,3.79278416,191.73,191.68,2.74]
[1761386899222,3.79278416,191.72,191.68,2.74]
[1761386899411,4.6933,191.75,191.68,2.74]
[1761386899612,3.79232187,191.74,191.68,2.74]
[1761386899817,7.49776773,191.81,191.68,2.74]
[1761386900013,8.16815506,191.8,191.68,2.74]
[1761386900219,3.79303864,191.79,191.73,2.74]
[1761386900413,2.75,191.81,191.74,67.32]
[1761386900624,2.75,191.81,191.74,70.06]
[1761386901224,2.75,191.81,191.65,15.59]
[1761386901420,6.53971,191.8,191.67,2.74]
[1761386901626,4.6921,191.79,191.67,2.74]
[1761386902523,3.93560071,191.78,191.67,2.74]
[1761386902725,4.6921,191.79,191.67,2.74]
[1761386903028,3.93559971,191.78,191.69,2.74]
[1761386903227,7.4421,191.79,191.69,2.74]
[1761386904525,7.4421,191.79,191.7,4.6943]
[1761386904833,2.75,191.83,191.71,2.74]
[1761386905032,3.93377915,191.82,191.71,2.74]
[1761386905231,2.75,191.83,191.71,2.74]
[1761386906022,7.4413,191.83,191.73,4.6934]
[1761386906230,7.4413,191.83,191.74,61.82]
[1761386906527,7.4413,191.83,191.74,123.82]
[1761386906834,7.4413,191.83,191.75,2.74]
[1761386907824,2.75,191.83,191.75,2.74]
[1761386908729,2.75,191.82,191.75,2.74]
[1761386908935,2.75,191.82,191.76,67.04]
[1761386909324,2.75,191.82,191.75,2.74]
[1761386909832,2.75,191.81,191.76,67.0]
[1761386910524,2.75,191.79,191.71,2.74]